bitfinex/quotes_SOLUSD_20251001
["timestamp","ask_amount","ask_price","bid_price","bid_amount"]
[1759294169078,23.92685373,208.98,208.93,33.62]
[1759294169281,24.64685373,208.98,208.93,34.31]
[1759294169589,16.74721277,208.99,208.94,0.69]
[1759294170091,16.74721277,208.99,208.93,33.62]
[1759294170391,0.72,208.98,208.93,33.62]
[1759294170689,16.74881561,208.97,208.93,34.31]
[1759294170878,17.46881561,208.97,208.93,33.62]
[1759294171281,14.36816015,208.94,208.93,33.62]
[1759294171480,4.78537589,208.97,208.93,34.31]
[1759294171792,4.78537589,208.97,208.94,0.69]
[1759294171993,11.96211209,209.0,208.94,0.69]
[1759294172169,11.96211209,209.0,208.96,20.8]
[1759294172492,4.78423117,209.02,208.97,34.31]
[1759294172692,16.74408014,209.03,208.98,0.69]
[1759294172999,16.74408014,209.03,208.99,0.69]
[1759294173175,16.74408014,209.03,209.0,33.62]
[1759294173367,17.46408014,209.03,209.0,33.62]
[1759294174289,11.96007785,209.03,209.0,33.62]
[1759294174495,12.68007785,209.03,209.0,33.62]
[1759294175780,17.46408014,209.03,209.0,33.62]
[1759294177186,16.74408014,209.03,209.0,33.62]
[1759294177501,4.78400229,209.03,209.01,0.69]
[1759294178012,16.7420086,209.06,209.02,0.69]
[1759294178999,17.4620086,209.06,209.0,34.31]
[1759294179276,17.4620086,209.06,208.85,64.59751904]
[1759294179277,0.72,209.05,209.01,33.62]
[1759294179500,0.72,209.04,209.02,33.62]
[1759294179701,0.72,209.03,208.95,0.69]
[1759294180000,16.7448091,209.02,208.95,0.69]
[1759294180210,17.4648091,209.02,208.95,0.69]
[1759294180799,17.4648091,209.02,208.96,33.6]
[1759294181106,16.7448091,209.02,208.97,0.69]
[1759294181282,16.7448091,209.02,208.98,0.69]
[1759294181488,16.7448091,209.02,208.99,0.69]
[1759294181701,16.7448091,209.02,209.0,33.6]
[1759294182388,11.96057793,209.02,209.0,33.6]
[1759294183802,0.72,209.02,209.0,33.6]
[1759294184516,0.72,209.02,209.01,33.6]
[1759294184812,5.50423117,209.02,209.01,33.6]
[1759294186284,5.50423117,209.02,209.01,70.9]
[1759294187802,4.78423117,209.02,209.01,70.9]
[1759294187987,5.50423117,209.02,209.01,70.9]
[1759294192591,4.78423117,209.02,209.01,70.9]
[1759294193102,4.78423117,209.02,209.01,71.59]
[1759294193307,11.95820739,209.07,209.04,20.8]
[1759294193603,11.95820739,209.07,209.05,33.6]
[1759294195306,4.78285823,209.08,209.07,20.8]
[1759294195492,4.78285823,209.08,209.07,54.4]
[1759294196194,4.78285823,209.08,209.07,55.07]
[1759294197012,11.95645451,209.1,209.07,33.6]
[1759294197807,11.95645451,209.1,209.01,58.1]
[1759294197999,0.66,209.09,209.03,0.67]
[1759294198199,0.66,209.09,209.04,33.6]
[1759294198402,0.66,209.09,209.04,34.27]
[1759294198901,16.74000382,209.08,209.04,34.27]
[1759294200484,17.40000382,209.08,209.04,34.27]
[1759294200689,17.40000382,209.08,209.04,33.6]
[1759294200890,23.90747596,209.14,209.01,58.1]
[1759294200891,16.74160527,209.06,209.01,58.1]
[1759294201086,0.66,209.05,209.02,33.58]
[1759294201504,16.74160527,209.06,209.01,37.3]
[1759294201505,17.40160527,209.06,209.01,37.3]
[1759294201697,0.66,209.05,209.03,33.58]
[1759294201885,17.40160527,209.06,209.03,33.58]
[1759294203005,4.78285823,209.08,209.04,0.67]
[1759294203205,4.78285823,209.08,209.05,34.25]
[1759294203510,0.66,209.07,209.06,33.58]
[1759294203696,0.66,209.07,209.01,37.3]
[1759294204007,16.74000382,209.08,209.02,33.58]
[1759294204317,16.74000382,209.08,209.02,34.25]
[1759294204609,40.654295,209.08,209.02,33.58]
[1759294204807,0.66,209.07,209.02,33.58]
[1759294205009,0.66,209.06,209.02,33.58]
[1759294205205,36.53143677,209.08,209.03,0.67]
[1759294205598,36.53143677,209.08,209.02,33.58]
[1759294205599,0.66,209.07,209.02,33.58]
[1759294205807,0.66,209.06,209.02,33.58]
[1759294206512,36.53143677,209.08,209.02,34.25]
[1759294207392,0.66,209.07,209.01,37.3]
[1759294207619,0.66,209.07,208.9,3.94556059]
[1759294207620,13.59559401,209.05,208.9,3.94556059]
[1759294207794,13.59559401,209.03,208.91,34.25]
[1759294208119,0.66,209.02,208.92,0.67]
[1759294208412,0.66,209.02,208.94,20.8]
[1759294208619,0.28432314,209.04,208.95,33.58]
[1759294208620,0.66,209.01,208.95,33.58]
[1759294208819,0.66,209.03,208.96,0.67]
[1759294209416,16.7448091,209.02,208.96,0.67]
[1759294209601,16.7448091,209.02,208.95,33.58]
[1759294209602,0.66,209.01,208.95,33.58]
[1759294209804,0.66,209.01,208.96,37.97]
[1759294210421,0.66,209.01,208.96,37.3]
[1759294210722,0.66,209.01,208.96,37.97]
[1759294211014,0.66,209.01,208.96,37.3]
[1759294211217,0.66,209.01,208.97,33.58]
[1759294211414,16.74641147,209.0,208.97,33.58]
[1759294212519,17.40641147,209.0,208.97,33.58]
[1759294214027,0.66,208.99,208.96,37.3]
[1759294214200,16.74641147,209.0,208.96,37.3]
[1759294214201,0.66,208.98,208.97,33.58]
[1759294214623,16.74641147,209.0,208.97,34.25]
[1759294214828,16.74641147,209.0,208.98,0.67]
[1759294215002,4.78468899,209.0,208.99,0.67]
[1759294215200,11.96048953,209.03,209.0,20.8]
[1759294215424,5.44285823,209.08,209.01,34.25]
[1759294215619,5.44285823,209.08,209.02,0.67]
[1759294216220,41.314295,209.08,209.0,20.8]
[1759294216521,0.28432314,209.06,209.01,33.58]
[1759294216720,13.59559401,209.04,209.02,33.58]
[1759294216918,0.66,209.03,209.02,33.58]
[1759294217324,0.66,209.03,208.96,37.3]
[1759294217526,0.66,209.02,208.96,37.3]
[1759294217728,0.66,209.01,208.96,37.3]
[1759294217913,0.66,209.0,208.96,37.3]
[1759294218117,0.66,208.99,208.96,37.3]
[1759294218409,0.66,208.99,208.87,5.35603144]
[1759294218410,0.66,208.98,208.89,4.61556059]
[1759294218608,0.72,208.97,208.9,33.58]
[1759294218824,0.72,208.97,208.88,3.94556059]
[1759294218825,13.59559401,208.95,208.88,3.94556059]
[1759294219026,0.72,208.94,208.89,33.58]
[1759294219212,0.72,208.93,208.89,33.58]
[1759294219412,13.59559401,208.95,208.89,33.58]
[1759294219413,0.72,208.92,208.89,33.58]
[1759294219738,4.78675027,208.91,208.89,33.58]
[1759294219919,4.78675027,208.91,208.9,37.3]
[1759294220935,11.96652457,208.92,208.9,37.3]
[1759294222932,5.50675027,208.91,208.9,37.3]
[1759294223537,5.50675027,208.91,208.9,70.88]
[1759294223742,5.50675027,208.91,208.9,37.3]
[1759294223925,5.50675027,208.91,208.9,70.88]
[1759294224432,5.50675027,208.91,208.85,21.9214876]
[1759294224433,17.45362595,208.91,208.85,21.9214876]
[1759294224634,14.29559401,208.9,208.85,21.9214876]
[1759294224945,13.59559401,208.88,208.85,21.9214876]
[1759294225116,5.48766696,208.87,208.85,21.9214876]
[1759294225308,4.78766696,208.87,208.85,21.9214876]
[1759294225515,19.08326097,208.87,208.86,33.6]
[1759294229825,19.08326097,208.87,208.86,70.92]
[1759294230139,4.78766696,208.87,208.86,70.92]
[1759294230518,4.78766696,208.87,208.86,71.63]
[1759294230718,4.78766696,208.87,208.86,70.92]
[1759294231641,40.68737732,208.91,208.86,70.92]
[1759294231946,0.7,208.9,208.86,70.92]
[1759294232625,16.75523001,208.89,208.86,70.92]
[1759294233548,16.75523001,208.89,208.87,0.71]
[1759294233745,16.75523001,208.89,208.88,33.6]
[1759294233961,16.75303913,208.92,208.88,34.31]
[1759294234136,16.75303913,208.92,208.88,33.6]
[1759294234338,4.78652115,208.92,208.89,0.71]
[1759294234534,16.75085873,208.95,208.9,33.6]
[1759294234843,17.45085873,208.95,208.9,34.31]
[1759294235046,16.75085873,208.95,208.9,34.31]
[1759294235281,16.75085873,208.95,208.91,0.71]
[1759294235758,14.29559401,208.94,208.87,0.71]
[1759294236063,0.7,208.94,208.87,0.71]
[1759294236264,16.75085873,208.95,208.89,20.8]
[1759294236543,16.75085873,208.95,208.9,0.71]
[1759294236726,11.9650248,208.95,208.89,20.8]
[1759294236925,11.9650248,208.95,208.91,33.62]
[1759294237125,0.7,208.94,208.91,33.62]
[1759294237546,0.7,208.93,208.92,33.62]
[1759294239648,0.7,208.93,208.86,58.12]
[1759294239649,13.59559401,208.92,208.86,58.12]
[1759294239858,0.7,208.91,208.86,58.12]
[1759294240332,0.7,208.91,208.86,58.83]
[1759294240734,0.7,208.91,208.87,33.62]
[1759294242291,16.75362595,208.91,208.87,33.62]
[1759294243151,0.7,208.9,208.87,33.62]
[1759294243760,0.7,208.9,208.85,21.9214876]
[1759294243761,13.59559401,208.88,208.85,21.9214876]
[1759294243930,13.59559401,208.86,208.82,0.2]
[1759294244139,13.59559401,208.86,208.83,70.96]
[1759294244433,5.48812544,208.85,208.83,70.96]
[1759294244754,0.7,208.84,208.83,70.96]
[1759294244944,0.7,208.84,208.82,1e-08]
[1759294245147,13.59559401,208.83,208.82,1e-08]
[1759294245351,0.28432314,208.82,208.73,0.71]
[1759294245552,0.7,208.81,208.73,0.71]
[1759294246369,16.7624521,208.8,208.74,33.64]
[1759294246679,16.7624521,208.8,208.75,0.71]
[1759294247046,16.7624521,208.8,208.74,54.44]
[1759294247242,16.7624521,208.8,208.75,0.71]
[1759294247475,16.7624521,208.8,208.76,0.71]
[1759294247672,16.7624521,208.8,208.77,34.35]
[1759294247878,17.4624521,208.8,208.74,21.51]
[1759294248190,0.7,208.79,208.75,33.64]
[1759294248862,16.76405785,208.78,208.75,33.64]
[1759294249068,16.76405785,208.78,208.75,34.35]
[1759294249672,16.76405785,208.78,208.76,0.71]
[1759294249853,16.76405785,208.78,208.77,37.32]
[1759294250175,4.78973081,208.78,208.77,37.32]
[1759294250377,4.78973081,208.78,208.77,38.03]
[1759294250878,11.97290709,208.81,208.77,38.03]
[1759294251188,4.78858401,208.83,208.78,34.39]
[1759294251369,4.78858401,208.83,208.81,20.8]
[1759294251569,4.78858401,208.83,208.82,34.39]
[1759294251956,4.78858401,208.83,208.82,33.68]
[1759294252465,4.78858401,208.83,208.82,34.39]
[1759294253378,17.42603216,208.88,208.82,33.68]
[1759294253573,17.42603216,208.88,208.8,21.48]
[1759294253879,17.42603216,208.88,208.81,33.7]
[1759294255266,16.75603216,208.88,208.81,33.7]
[1759294255568,0.67,208.87,208.8,21.48]
[1759294255766,0.67,208.87,208.81,33.68]
[1759294256268,16.75763668,208.86,208.81,33.68]
[1759294256474,17.42763668,208.86,208.81,34.36]
[1759294256672,16.75763668,208.86,208.81,34.36]
[1759294256977,16.75763668,208.86,208.8,20.8]
[1759294256978,0.67,208.85,208.82,33.68]
[1759294257167,0.67,208.85,208.8,20.8]
[1759294257168,16.75763668,208.86,208.83,33.68]
[1759294257352,17.42763668,208.86,208.84,33.68]
[1759294258674,4.78789619,208.86,208.85,37.32]
[1759294260081,5.45789619,208.86,208.85,71.04]
[1759294263195,4.78789619,208.86,208.85,71.04]
[1759294263572,5.45789619,208.86,208.85,71.04]
[1759294264086,4.78789619,208.86,208.85,71.04]
[1759294264500,5.45789619,208.86,208.85,71.04]
[1759294265987,4.78789619,208.86,208.85,71.04]
[1759294266378,17.42763668,208.86,208.79,20.8]
[1759294266579,0.67,208.85,208.79,20.8]
[1759294266774,16.75763668,208.86,208.77,0.68]
[1759294266775,0.67,208.84,208.77,0.68]
[1759294266986,13.59559401,208.83,208.75,0.68]
[1759294267181,14.26559401,208.83,208.76,33.72]
[1759294267374,0.67,208.82,208.76,33.72]
[1759294267690,35.90922148,208.86,208.79,20.8]
[1759294267896,35.90922148,208.86,208.8,34.4]
[1759294268101,11.96974049,208.86,208.81,0.68]
[1759294268289,11.96974049,208.86,208.82,0.68]
[1759294268491,11.96974049,208.86,208.83,33.74]
[1759294268688,16.75523001,208.89,208.83,34.42]
[1759294269595,0.67,208.88,208.84,33.74]
[1759294269787,16.75523001,208.89,208.84,34.42]
[1759294269981,17.42523001,208.89,208.85,37.32]
[1759294270179,16.75523001,208.89,208.85,37.32]
[1759294270879,11.96802144,208.89,208.85,37.32]
[1759294271084,0.67,208.88,208.85,37.32]
[1759294271285,0.67,208.88,208.86,33.76]
[1759294272691,4.78766696,208.87,208.86,33.76]
[1759294274598,16.75523001,208.89,208.86,33.76]
[1759294274976,17.42523001,208.89,208.86,33.76]
[1759294277313,11.96802144,208.89,208.86,33.76]
[1759294277479,12.63802144,208.89,208.86,33.76]
[1759294278486,0.67,208.88,208.86,33.76]
[1759294278688,0.67,208.87,208.86,33.76]
[1759294278879,12.63802144,208.89,208.85,37.32]
[1759294279075,0.67,208.88,208.86,33.72]
[1759294279275,4.78766696,208.87,208.86,33.72]
[1759294279473,4.78766696,208.87,208.85,37.32]
[1759294279690,4.78766696,208.87,208.86,34.42]
[1759294279890,4.78766696,208.87,208.86,33.72]
[1759294280392,5.47766696,208.87,208.86,33.72]
[1759294280709,4.78766696,208.87,208.86,33.72]
[1759294281214,5.47766696,208.87,208.85,37.32]
[1759294281386,5.47766696,208.87,208.77,41.26556059]
[1759294281387,13.59559401,208.84,208.77,0.7]
[1759294281720,13.59559401,208.82,208.78,37.32]
[1759294282005,16.75843906,208.85,208.78,38.02]
[1759294282193,14.56991715,208.84,208.78,38.02]
[1759294282393,14.56991715,208.84,208.79,33.74]
[1759294282801,0.69,208.83,208.79,33.74]
[1759294283319,16.76084666,208.82,208.79,33.74]
[1759294285034,11.97203333,208.82,208.79,33.74]
[1759294285330,12.65203333,208.82,208.79,33.74]
[1759294285502,11.97203333,208.82,208.79,33.74]
[1759294286032,17.44084666,208.82,208.79,33.74]
[1759294288408,11.97203333,208.82,208.79,33.74]
[1759294288597,12.65203333,208.82,208.79,33.74]
[1759294288799,11.97203333,208.82,208.79,33.74]
[1759294291031,11.97203333,208.82,208.78,37.32]
[1759294291236,0.68,208.81,208.8,33.72]
[1759294291903,11.97203333,208.82,208.8,33.72]
[1759294292100,11.97203333,208.82,208.8,34.42]
[1759294292401,11.97203333,208.82,208.8,33.72]
[1759294292626,16.76084666,208.82,208.8,33.72]
[1759294292842,16.76084666,208.82,208.78,38.02]
[1759294293011,16.76084666,208.82,208.79,33.72]
[1759294298132,4.78881333,208.82,208.8,0.7]
[1759294298345,11.97071249,208.85,208.8,0.7]
[1759294298346,4.78855846,208.84,208.81,33.7]
[1759294298513,4.78855846,208.84,208.82,0.7]
[1759294298716,4.78855846,208.84,208.83,34.4]
[1759294298921,4.78855846,208.84,208.83,33.7]
[1759294299211,4.78855846,208.84,208.83,34.4]
[1759294299416,4.78855846,208.84,208.83,33.7]
[1759294300440,11.97071249,208.85,208.83,33.7]
[1759294302215,11.97071249,208.85,208.83,34.4]
[1759294302735,4.78766696,208.87,208.84,0.7]
[1759294302938,4.78766696,208.87,208.85,0.7]
[1759294303122,4.78766696,208.87,208.86,33.68]
[1759294303306,4.78766696,208.87,208.86,34.38]
[1759294303509,4.78675027,208.91,208.86,34.38]
[1759294303744,4.78675027,208.91,208.87,0.7]
[1759294303912,4.78675027,208.91,208.86,33.68]
[1759294304114,0.68,208.9,208.82,24.74556059]
[1759294304434,16.75362595,208.91,208.83,34.4]
[1759294304736,16.75362595,208.91,208.84,0.7]
[1759294306608,0.68,208.9,208.85,33.72]
[1759294307211,0.68,208.89,208.85,33.72]
[1759294307407,20.8,208.92,208.85,33.72]
[1759294307622,0.68,208.91,208.85,33.72]
[1759294307837,0.68,208.91,208.84,0.7]
[1759294308016,0.68,208.91,208.85,33.72]
[1759294308625,16.75442794,208.9,208.86,33.7]
[1759294308824,17.43442794,208.9,208.86,33.7]
[1759294309828,16.75442794,208.9,208.86,34.4]
[1759294310525,16.75442794,208.9,208.87,0.7]
[1759294310725,11.96744853,208.9,208.87,0.7]
[1759294310927,11.96744853,208.9,208.86,33.7]
[1759294311127,11.96744853,208.9,208.87,0.7]
[1759294311739,11.96744853,208.9,208.86,33.7]
[1759294311921,11.96744853,208.9,208.86,34.4]
[1759294312540,11.96744853,208.9,208.86,33.7]
[1759294312742,17.43442794,208.9,208.86,33.7]
[1759294313244,17.43442794,208.9,208.86,34.42]
[1759294313446,16.75442794,208.9,208.86,33.7]
[1759294313758,17.44442794,208.9,208.84,21.32]
[1759294313930,16.75442794,208.9,208.85,33.68]
[1759294314244,16.75442794,208.9,208.86,0.72]
[1759294314637,11.96744853,208.9,208.87,33.68]
[1759294315741,4.78675027,208.91,208.88,0.72]
[1759294316618,4.78675027,208.91,208.87,33.68]
[1759294316824,16.75282404,208.92,208.87,33.68]
[1759294317024,0.69,208.91,208.87,33.68]
[1759294317735,16.75282404,208.92,208.87,34.4]
[1759294317921,17.44282404,208.92,208.87,34.4]
[1759294318135,16.75282404,208.92,208.87,34.4]
[1759294318332,17.44282404,208.92,208.87,34.4]
[1759294318845,4.78537589,208.97,208.9,20.8]
[1759294319056,4.78537589,208.97,208.91,34.38]
[1759294319234,4.78537589,208.97,208.92,0.72]
[1759294319646,4.78537589,208.97,208.91,33.66]
[1759294319848,0.69,209.02,208.94,20.8]
[1759294320147,0.69,209.04,208.98,20.8]
[1759294320450,0.69,209.04,208.99,71.0]
[1759294320663,0.69,209.03,209.0,33.68]
[1759294320951,5.47423117,209.02,209.0,33.68]
[1759294321366,0.69,209.01,208.87,3.94556059]
[1759294321540,2.48344359,208.99,208.88,71.06]
[1759294321737,13.59559401,208.97,208.88,71.06]
[1759294322061,0.69,208.96,208.88,91.86]
[1759294322259,0.69,208.96,208.88,37.32]
[1759294322438,14.28559401,208.95,208.89,33.76]
[1759294322638,13.59559401,208.93,208.89,33.76]
[1759294322838,4.78675027,208.91,208.89,33.76]
[1759294323061,0.69,208.9,208.89,33.76]
[1759294323459,4.78675027,208.91,208.89,33.76]
[1759294323660,0.69,208.9,208.89,33.76]
[1759294324362,0.69,208.9,208.88,37.32]
[1759294324551,16.75362595,208.91,208.89,33.76]
[1759294325055,0.69,208.9,208.89,33.76]
[1759294325433,0.69,208.9,208.83,20.8]
[1759294325666,0.69,208.89,208.79,0.72]
[1759294326752,0.69,208.89,208.8,33.76]
[1759294326959,0.69,208.88,208.8,33.76]
[1759294327162,0.69,208.87,208.81,33.76]
[1759294327342,0.69,208.86,208.81,33.76]
[1759294327667,0.69,208.85,208.79,0.72]
[1759294327858,0.69,208.85,208.82,33.76]
[1759294328766,4.78835472,208.84,208.82,33.76]
[1759294329161,0.69,208.83,208.82,33.76]
[1759294329353,0.69,208.83,208.82,33.78]
[1759294329953,0.69,208.83,208.82,71.1]
[1759294330362,16.75924152,208.84,208.82,71.1]
[1759294330948,11.96941396,208.87,208.83,0.72]
[1759294332395,11.96941396,208.87,208.82,71.1]
[1759294332565,11.96941396,208.87,208.82,38.04]
[1759294332761,11.96941396,208.87,208.83,33.76]
[1759294333148,11.96941396,208.87,208.84,34.48]
[1759294333361,11.96941396,208.87,208.84,33.76]
[1759294334053,0.69,208.86,208.82,37.32]
[1759294334249,0.69,208.86,208.83,33.76]
[1759294334452,0.69,208.85,208.83,33.76]
[1759294334664,0.69,208.84,208.83,33.76]
[1759294334860,4.78858401,208.83,208.82,37.32]
[1759294335071,5.47858401,208.83,208.82,71.08]
[1759294341361,17.45004404,208.83,208.75,40.52718882]
[1759294341674,4.78904267,208.81,208.76,33.74]
[1759294341859,0.67,208.8,208.77,33.74]
[1759294342044,0.67,208.8,208.73,21.51]
[1759294342248,0.67,208.8,208.74,33.74]
[1759294344053,16.76325494,208.79,208.74,33.74]
[1759294344280,17.46325494,208.79,208.74,34.46]
[1759294346076,17.46325494,208.79,208.75,33.72]
[1759294346077,0.7,208.78,208.75,33.72]
[1759294346376,0.7,208.77,208.7,0.2]
[1759294347156,0.7,208.77,208.71,0.72]
[1759294347879,40.710762,208.79,208.72,33.74]
[1759294348081,40.710762,208.79,208.73,0.72]
[1759294348380,41.410762,208.79,208.73,0.72]
[1759294349571,41.410762,208.79,208.72,33.74]
[1759294349769,0.7,208.78,208.72,33.74]
[1759294349970,0.7,208.77,208.73,37.34]
[1759294350169,0.7,208.76,208.73,37.34]
[1759294350680,40.710762,208.79,208.74,33.74]
[1759294350681,0.7,208.75,208.74,33.74]
[1759294351456,5.49041916,208.75,208.74,33.74]
[1759294352678,5.49041916,208.75,208.73,37.34]
[1759294352978,0.7,208.74,208.73,37.34]
[1759294353876,0.7,208.74,208.73,71.08]
[1759294354687,5.49064865,208.74,208.73,71.08]
[1759294354877,26.29064865,208.74,208.73,37.34]
[1759294355075,26.29064865,208.74,208.73,71.06]
[1759294358588,38.26727028,208.74,208.7,0.2]
[1759294359288,37.56727028,208.74,208.7,0.2]
[1759294359489,0.7,208.73,208.7,0.2]
[1759294359871,25.5911077,208.72,208.71,71.08]
[1759294360271,25.5911077,208.72,208.71,37.34]
[1759294360488,25.5911077,208.72,208.71,71.08]
[1759294364482,26.2911077,208.72,208.71,71.08]
[1759294365997,26.2911077,208.72,208.7,0.2]
[1759294366174,0.7,208.71,208.7,0.2]
[1759294366375,21.5,208.71,208.7,0.2]
[1759294367192,20.8,208.71,208.7,33.92]
[1759294367996,4.7911077,208.72,208.7,34.64]
[1759294368202,4.7911077,208.72,208.71,0.72]
[1759294368498,4.7911077,208.72,208.7,33.92]
[1759294368676,4.7911077,208.72,208.7,34.64]
[1759294369093,4.7911077,208.72,208.7,33.92]
[1759294369312,4.7911077,208.72,208.71,0.72]
[1759294370003,16.76566391,208.76,208.71,38.08]
[1759294370185,16.76566391,208.76,208.72,0.72]
[1759294370380,16.76566391,208.76,208.73,34.42]
[1759294371711,16.76566391,208.76,208.73,33.7]
[1759294372212,12.67547422,208.76,208.74,33.7]
[1759294372376,11.97547422,208.76,208.75,33.7]
[1759294374294,13.59559401,208.78,208.75,33.7]
[1759294374495,0.67,208.76,208.75,33.7]
[1759294375098,40.71095189,208.79,208.75,33.7]
[1759294375099,13.59559401,208.78,208.75,33.7]
[1759294375303,0.67,208.77,208.75,33.7]
[1759294376408,40.71095189,208.79,208.75,34.41]
[1759294376608,41.38095189,208.79,208.75,33.7]
[1759294376791,0.67,208.78,208.75,33.7]
[1759294377108,0.67,208.77,208.75,33.7]
[1759294377492,0.67,208.78,208.75,33.7]
[1759294378094,0.67,208.77,208.75,33.7]
[1759294378501,0.67,208.76,208.75,33.7]
[1759294379210,0.67,208.76,208.75,37.34]
[1759294379510,13.59559401,208.75,208.7,0.2]
[1759294379812,13.59559401,208.75,208.71,71.0]
[1759294379813,0.67,208.74,208.71,71.0]
[1759294379994,0.67,208.73,208.71,71.0]
[1759294380182,13.59559401,208.75,208.71,71.0]
[1759294380391,4.7911077,208.72,208.7,0.2]
[1759294380691,20.8,208.68,208.67,0.2]
[1759294381403,0.67,208.68,208.67,0.2]
[1759294381609,0.67,208.68,208.67,1e-08]
[1759294381798,13.59559401,208.67,208.64,1e-08]
[1759294382106,15.00585371,208.67,208.64,1e-08]
[1759294382412,0.67,208.66,208.64,1e-08]
[1759294382790,4.79271507,208.65,208.64,1e-08]
[1759294382995,18.38830908,208.65,208.64,1e-08]
[1759294383207,18.38830908,208.65,208.6,0.2]
[1759294383208,13.59559401,208.64,208.6,0.2]
[1759294383715,14.26559401,208.63,208.6,0.2]
[1759294384590,14.26559401,208.63,208.62,33.92]
[1759294384794,19.05876852,208.63,208.62,33.92]
[1759294385319,13.59559401,208.62,208.6,0.2]
[1759294385480,34.39559401,208.59,208.58,1e-08]
[1759294385685,34.39559401,208.59,208.51,0.71]
[1759294385890,34.39559401,208.59,208.54,1e-08]
[1759294385891,13.59559401,208.57,208.54,1e-08]
[1759294386284,13.59559401,208.55,208.52,1e-08]
[1759294386485,0.67,208.59,208.52,1e-08]
[1759294386683,20.8,208.55,208.52,0.71000001]
[1759294386879,4.79524311,208.54,208.53,0.71]
[1759294387316,11.98660498,208.57,208.53,0.71]
[1759294387317,4.79455338,208.57,208.53,34.49]
[1759294387494,4.79455338,208.57,208.53,33.78]
[1759294387687,4.79455338,208.57,208.54,0.71]
[1759294388414,4.79455338,208.57,208.53,33.78]
[1759294388593,16.78093684,208.57,208.54,0.71]
[1759294388788,16.78093684,208.57,208.53,33.78]
[1759294389109,17.45093684,208.57,208.53,33.78]
[1759294389310,17.45093684,208.57,208.52,1e-08]
[1759294389507,0.67,208.56,208.52,1e-08]
[1759294389691,0.67,208.56,208.53,33.82]
[1759294389886,16.78093684,208.57,208.54,37.36]
[1759294390106,0.67,208.56,208.54,37.36]
[1759294390486,20.8,208.55,208.54,37.36]
[1759294390696,20.8,208.55,208.54,38.07]
[1759294391014,25.59501318,208.55,208.54,38.07]
[1759294391515,25.59501318,208.55,208.54,37.36]
[1759294393805,25.59501318,208.55,208.54,71.18]
[1759294394909,26.26501318,208.55,208.54,71.18]
[1759294397220,25.59501318,208.55,208.54,71.18]
[1759294399902,25.59501318,208.55,208.54,71.85]
[1759294400098,26.31501318,208.55,208.54,37.36]
[1759294400303,26.31501318,208.55,208.54,71.18]
[1759294403524,25.59501318,208.55,208.54,71.18]
[1759294404322,17.44254614,208.55,208.54,37.38]
[1759294404544,17.44254614,208.55,208.52,1e-08]
[1759294404721,20.8,208.53,208.52,1e-08]
[1759294404907,4.79593304,208.51,208.5,0.2]
[1759294405813,4.79593304,208.51,208.5,34.06]
[1759294406310,25.59593304,208.51,208.5,34.06]
[1759294406918,4.79593304,208.51,208.5,34.06]